bitfinex/quotes_BTCUSD_20241120
["timestamp","ask_amount","ask_price","bid_price","bid_amount"]
[1732100540630,0.34911541,93193.0,93192.0,0.0017126]
[1732100541306,0.49100152,93193.0,93192.0,0.0017126]
[1732100541576,0.45911541,93193.0,93192.0,0.0017126]
[1732100542297,0.44911541,93193.0,93192.0,0.0017126]
[1732100542535,0.33911541,93193.0,93192.0,0.0017126]
[1732100542779,0.37100453,93193.0,93192.0,0.0017126]
[1732100543022,0.33911541,93193.0,93192.0,0.0017126]
[1732100543277,0.20151541,93193.0,93192.0,0.0017126]
[1732100543525,0.19876121,93193.0,93192.0,0.0017126]
[1732100543750,0.19983261,93193.0,93192.0,0.0017126]
[1732100544953,0.19876121,93193.0,93192.0,0.0017126]
[1732100545181,0.19983261,93193.0,93192.0,0.0017126]
[1732100545671,0.24449425,93193.0,93192.0,0.0017126]
[1732100545917,0.19876121,93193.0,93192.0,0.0017126]
[1732100546172,0.24449447,93193.0,93192.0,0.0017126]
[1732100546406,0.24343622,93193.0,93192.0,0.0017126]
[1732100546617,0.19876121,93193.0,93192.0,0.0017126]
[1732100546866,0.2968249,93193.0,93192.0,0.0017126]
[1732100547446,0.3444249,93193.0,93192.0,0.0017126]
[1732100547793,0.34978249,93193.0,93192.0,0.0017126]
[1732100549069,0.33978249,93193.0,93192.0,0.0017126]
[1732100549302,0.34978249,93193.0,93192.0,0.0017126]
[1732100549508,0.3444249,93193.0,93192.0,0.0017126]
[1732100549720,0.24799501,93193.0,93192.0,0.0017126]
[1732100549918,0.2015787,93193.0,93192.0,0.0017126]
[1732100550123,0.22875592,93193.0,93192.0,0.0017126]
[1732100550303,0.23768452,93193.0,93192.0,0.0017126]
[1732100550535,0.16242025,93193.0,93192.0,0.0017126]
[1732100550735,0.22340572,93193.0,93192.0,0.0017126]
[1732100550913,0.22233432,93193.0,93192.0,0.0017126]
[1732100551139,0.2015866,93193.0,93192.0,0.0017126]
[1732100551344,0.09447148,93193.0,93192.0,0.0017126]
[1732100551547,0.2115866,93193.0,93192.0,0.0017126]
[1732100551725,0.24351492,93193.0,93192.0,0.0017126]
[1732100551874,0.2015866,93193.0,93192.0,0.0017126]
[1732100552078,0.212658,93193.0,93192.0,0.0017126]
[1732100552277,0.24458632,93193.0,93192.0,0.0017126]
[1732100552484,0.24351492,93193.0,93192.0,0.0017126]
[1732100552690,0.21694389,93193.0,93192.0,0.0017126]
[1732100553103,0.29874389,93193.0,93192.0,0.0017126]
[1732100554087,0.35434389,93193.0,93192.0,0.0017126]
[1732100556296,0.35436138,93193.0,93192.0,0.0017126]
[1732100558071,0.26673899,93192.0,93191.0,0.0004]
[1732100558248,0.45248084,93192.0,93191.0,0.0004]
[1732100558469,0.46524878,93192.0,93191.0,0.0004]
[1732100560006,0.46527108,93192.0,93191.0,0.0004]
[1732100560506,0.4972268,93192.0,93191.0,0.0004]
[1732100560962,0.46527108,93192.0,93191.0,0.0004]
[1732100561383,0.49723255,93192.0,93191.0,0.0004]
[1732100562019,0.46527108,93192.0,93191.0,0.0004]
[1732100562201,0.49723255,93192.0,93191.0,0.0004]
[1732100562367,0.46527108,93192.0,93191.0,0.0004]
[1732100562775,0.49723255,93192.0,93191.0,0.0004]
[1732100563194,0.46527108,93192.0,93191.0,0.0004]
[1732100563398,0.49724907,93192.0,93191.0,0.0004]
[1732100563822,0.46527108,93192.0,93191.0,0.0004]
[1732100564231,0.47527108,93192.0,93191.0,0.0004]
[1732100565255,0.58875252,93192.0,93191.0,0.0004]
[1732100565459,0.55677108,93192.0,93191.0,0.0004]
[1732100566360,0.58875252,93192.0,93191.0,0.0004]
[1732100566564,0.55677108,93192.0,93191.0,0.0004]
[1732100566776,0.58875252,93192.0,93191.0,0.0004]
[1732100567038,0.00845159,93178.0,93177.0,0.0017128]
[1732100567244,0.20813811,93178.0,93177.0,0.0017128]
[1732100567461,0.27350014,93178.0,93177.0,0.0017128]
[1732100567709,0.29321478,93178.0,93177.0,0.0017128]
[1732100568936,0.21171478,93178.0,93177.0,0.0017128]
[1732100569161,0.21278618,93178.0,93177.0,0.0017128]
[1732100570330,0.20171478,93178.0,93177.0,0.0017128]
[1732100570571,0.21171478,93178.0,93177.0,0.0017128]
[1732100570817,0.18892367,93178.0,93177.0,0.0017128]
[1732100571239,0.08180855,93178.0,93177.0,0.0017128]
[1732100573695,0.01644652,93178.0,93177.0,0.0017128]
[1732100573944,0.08180332,93178.0,93177.0,0.0017128]
[1732100577094,0.08180212,93178.0,93177.0,0.0017128]
[1732100577591,0.08179905,93178.0,93177.0,0.14600316]
[1732100578269,0.08179905,93178.0,93177.0,0.0017128]
[1732100578525,0.08179991,93178.0,93177.0,0.14613797]
[1732100579000,0.23851503,93178.0,93177.0,0.14613797]
[1732100579485,0.23851503,93178.0,93177.0,0.0017128]
[1732100579734,0.23851503,93178.0,93177.0,0.14617416]
[1732100579735,0.26130465,93178.0,93177.0,0.14617416]
[1732100580462,0.28430465,93178.0,93177.0,0.0017128]
[1732100580984,0.01,93176.0,93167.0,0.26803828]
[1732100581257,0.18153484,93175.0,93167.0,0.26803828]
[1732100581485,0.00845159,93169.0,93167.0,0.14447912]
[1732100581718,0.00845159,93169.0,93166.0,0.0008556]
[1732100581719,0.19852062,93169.0,93166.0,0.0008556]
[1732100581945,0.29368849,93169.0,93166.0,0.0008556]
[1732100582178,0.2926173,93169.0,93166.0,0.0008556]
[1732100582648,0.27922062,93169.0,93166.0,0.0008556]
[1732100583336,0.34692062,93169.0,93166.0,0.0008556]
[1732100583586,0.36310104,93169.0,93166.0,0.0008556]
[1732100583816,0.37310104,93169.0,93166.0,0.0008556]
[1732100586680,0.46961932,93169.0,93166.0,0.0008556]
[1732100586927,0.48301729,93169.0,93166.0,0.0008556]
[1732100588128,0.51494068,93169.0,93166.0,0.0008556]
[1732100588366,0.48837666,93169.0,93166.0,0.0008556]
[1732100589359,0.03845159,93167.0,93166.0,0.0008556]
[1732100589591,0.44823672,93167.0,93166.0,0.0008556]
[1732100589850,0.44823672,93167.0,93159.0,0.0008557]
[1732100589851,0.03845159,93162.0,93159.0,0.0008557]
[1732100590083,0.61133261,93162.0,93159.0,0.0008557]
[1732100590316,0.60490184,93162.0,93159.0,0.0008557]
[1732100590577,0.61026121,93162.0,93159.0,0.0008557]
[1732100591048,0.62091952,93162.0,93159.0,0.0008557]
[1732100591277,0.06145159,93160.0,93159.0,0.0008557]
[1732100591535,0.49247345,93160.0,93159.0,0.0008557]
[1732100591769,0.49140205,93160.0,93159.0,0.0008557]
[1732100592008,0.03845159,93152.0,93149.0,0.0008558]
[1732100592254,1.01262186,93152.0,93149.0,0.0008558]
[1732100592506,0.93866671,93152.0,93149.0,0.0008558]
[1732100593889,1.12736159,93152.0,93149.0,0.0008558]
[1732100594080,1.1273617,93152.0,93149.0,0.0008558]
[1732100594250,1.1534159,93152.0,93149.0,0.0008558]
[1732100595047,1.1554159,93152.0,93149.0,0.0008558]
[1732100596052,1.03185674,93152.0,93149.0,0.0008558]
[1732100596275,1.03179336,93152.0,93149.0,0.0008558]
[1732100596480,1.03179336,93152.0,93151.0,0.001256]
[1732100597897,0.28685159,93140.0,93139.0,0.0140508]
[1732100598112,0.47973243,93140.0,93139.0,0.0140508]
[1732100598529,0.47973243,93140.0,93139.0,0.00841689]
[1732100601272,0.43449547,93140.0,93139.0,0.00841689]
[1732100601479,0.47963513,93140.0,93139.0,0.00841689]
[1732100602957,0.4796325,93140.0,93139.0,0.00841689]
[1732100603161,0.4796325,93140.0,93139.0,0.00785371]
[1732100603368,0.48499369,93140.0,93139.0,0.00785371]
[1732100604187,0.42002117,93140.0,93139.0,0.00785371]
[1732100604415,0.42002117,93140.0,93110.0,0.0794]
[1732100604416,0.03845159,93138.0,93110.0,0.0794]
[1732100604663,0.33767602,93138.0,93110.0,0.0794]
[1732100604904,0.33660462,93138.0,93110.0,0.0794]
[1732100605815,0.31055016,93138.0,93110.0,0.0892297]
[1732100606034,0.33118543,93138.0,93110.0,0.0892297]
[1732100606273,0.33654673,93138.0,93110.0,0.0892297]
[1732100607100,0.46114673,93138.0,93110.0,0.0098297]
[1732100607599,0.47172892,93138.0,93110.0,0.0098297]
[1732100607832,0.52083912,93138.0,93097.0,0.078]
[1732100608150,0.52083912,93138.0,93084.0,0.00154841]
[1732100608151,1.05943912,93138.0,93091.0,0.04053769]
[1732100608355,0.01845159,93112.0,93097.0,0.0098841]
[1732100608591,0.23663811,93112.0,93097.0,0.0098841]
[1732100608827,0.32654673,93112.0,93095.0,0.12355916]
[1732100609067,0.21123736,93112.0,93106.0,0.079]
[1732100609294,0.21232568,93112.0,93106.0,0.079]
[1732100609789,0.21232568,93112.0,93091.0,0.0004]
[1732100609790,0.30594364,93112.0,93091.0,0.0004]
[1732100610031,0.34398473,93112.0,93093.0,0.0098575]
[1732100610531,0.3493468,93112.0,93093.0,0.0098575]
[1732100611747,0.3029468,93112.0,93093.0,0.0098575]
[1732100612036,0.3029468,93112.0,93091.0,0.0004]
[1732100612503,0.3625679,93112.0,93091.0,0.0004]
[1732100613191,0.00845159,93087.0,93079.0,0.12190016]
[1732100613426,0.03180834,93083.0,93079.0,0.12190016]
[1732100613658,0.00845159,93079.0,93076.0,0.00107429]
[1732100613893,0.00845159,93079.0,93075.0,0.0098255]
[1732100614145,0.06505712,93078.0,93075.0,0.0098255]
[1732100614598,0.06505712,93077.0,93075.0,0.0098255]
[1732100614821,0.06505712,93076.0,93074.0,0.0008559]
[1732100615078,0.00845159,93083.0,93074.0,0.0008559]
[1732100615079,0.03181272,93081.0,93075.0,0.2267]
[1732100615331,0.03181315,93080.0,93075.0,0.2267]
[1732100615537,0.03181315,93078.0,93075.0,0.2267]
[1732100615788,0.0651231,93077.0,93075.0,0.2267]
[1732100616003,0.0651231,93076.0,93075.0,0.2267]
[1732100616212,0.0969432,93076.0,93075.0,0.2267]
[1732100616417,0.0651231,93076.0,93075.0,0.2267]
[1732100616639,0.0651231,93076.0,93075.0,0.1267]
[1732100616840,0.0651231,93076.0,93075.0,0.0779]
[1732100617074,0.0651231,93076.0,93075.0,0.0877085]
[1732100617287,0.0651231,93076.0,93074.0,0.0008559]
[1732100617288,0.00845159,93075.0,93074.0,0.0008559]
[1732100617493,0.18176121,93075.0,93074.0,0.0008559]
[1732100617708,0.18972257,93075.0,93074.0,0.0008559]
[1732100617937,0.18974402,93075.0,93074.0,0.0008559]
[1732100618783,0.18867262,93075.0,93074.0,0.0008559]
[1732100618989,0.20140604,93075.0,93074.0,0.0008559]
[1732100619203,0.13626149,93075.0,93074.0,0.0008559]
[1732100619422,0.20140086,93075.0,93074.0,0.0008559]
[1732100619693,0.19294927,93075.0,93074.0,0.0008559]
[1732100619892,0.20140086,93075.0,93074.0,0.0008559]
[1732100620741,0.08583415,93075.0,93074.0,0.0008559]
[1732100620996,0.07310073,93075.0,93074.0,0.1764559]
[1732100621205,0.06513937,93075.0,93074.0,0.1764559]
[1732100621409,0.06513937,93075.0,93074.0,0.1784559]
[1732100621841,0.06513937,93075.0,93074.0,0.18107863]
[1732100622321,0.06513937,93075.0,93074.0,0.18000431]
[1732100622519,0.06513937,93075.0,93074.0,0.17800431]
[1732100622926,0.06513937,93075.0,93074.0,0.18000431]
[1732100623144,0.06513937,93075.0,93074.0,0.17800431]
[1732100623357,0.06513937,93075.0,93074.0,0.18000431]
[1732100623596,0.00845159,93095.0,93079.0,0.00154841]
[1732100623803,0.03185243,93083.0,93080.0,0.00107413]
[1732100624009,0.06516616,93082.0,93080.0,0.00107413]
[1732100624217,0.06516616,93081.0,93080.0,0.00107413]
[1732100624443,0.00845159,93100.0,93080.0,0.00107413]
[1732100624648,0.03185729,93083.0,93080.0,0.00107413]
[1732100624859,0.02836239,93099.0,93080.0,0.00107413]
[1732100624860,0.02606932,93099.0,93090.0,0.002]
[1732100625064,0.00536198,93099.0,93098.0,0.12355916]
[1732100625273,0.0785032,93099.0,93098.0,0.20215916]
[1732100625704,0.07314122,93099.0,93098.0,0.20215916]
[1732100625908,0.08588518,93099.0,93098.0,0.20215916]
[1732100626324,0.07314122,93099.0,93098.0,0.20215916]
[1732100626943,0.07314122,93099.0,93098.0,0.25005916]
[1732100628085,0.07315192,93099.0,93098.0,0.25005916]
[1732100628299,0.02136858,93099.0,93098.0,0.25005916]
[1732100628501,0.07315354,93099.0,93098.0,0.35005916]
[1732100628711,0.07315354,93099.0,93098.0,0.47516673]
[1732100628919,0.06518857,93099.0,93098.0,0.47516673]
[1732100629132,0.06518857,93099.0,93098.0,0.35160757]
[1732100630410,0.05178488,93099.0,93098.0,0.35005916]
[1732100631510,0.0517814,93099.0,93098.0,0.22355916]
[1732100631718,0.06518436,93099.0,93098.0,0.22355916]
[1732100632128,0.06518436,93099.0,93098.0,0.1]
[1732100632330,0.06518463,93099.0,93098.0,0.1]
[1732100632544,0.06518463,93099.0,93096.0,0.14397484]
[1732100632756,0.03186548,93108.0,93092.0,0.14397484]
[1732100632757,0.00845159,93096.0,93092.0,0.14397484]
[1732100632971,0.00845159,93096.0,93091.0,0.14397484]
[1732100632972,0.06518463,93095.0,93091.0,0.14397484]
[1732100633172,0.00845159,93096.0,93089.0,0.267534]
[1732100633173,0.06518463,93094.0,93089.0,0.267534]
[1732100633399,0.0517814,93093.0,93091.0,0.14397484]
[1732100633594,0.0517814,93092.0,93091.0,0.14397484]
[1732100633949,0.0517814,93092.0,93091.0,0.24397484]
[1732100634153,0.0517814,93092.0,93091.0,0.1]
[1732100634565,0.0517814,93092.0,93087.0,0.12355916]
[1732100634788,0.0517814,93091.0,93087.0,0.12355916]
[1732100634991,0.0517814,93090.0,93087.0,0.12355916]
[1732100635195,0.01991592,93089.0,93087.0,0.12355916]
[1732100635582,0.01991592,93088.0,93087.0,0.12355916]
[1732100635984,0.01991592,93088.0,93087.0,0.12441546]
[1732100636427,0.01991592,93088.0,93087.0,0.12548958]
[1732100636910,0.01991592,93088.0,93087.0,0.22548958]
[1732100637101,0.01991592,93088.0,93087.0,0.22441546]
[1732100637348,0.1,93099.0,93087.0,0.22441546]
[1732100637546,0.01991315,93098.0,93095.0,0.12355916]
[1732100637782,0.01991315,93097.0,93095.0,0.12355916]
[1732100637966,0.01991315,93096.0,93095.0,0.12355916]
[1732100638731,0.1,93099.0,93095.0,0.12355916]
[1732100639136,0.01991379,93096.0,93095.0,0.12355916]
[1732100639409,0.03982756,93096.0,93095.0,0.12355916]
[1732100640193,0.03982689,93096.0,93095.0,0.12355916]
[1732100640402,0.01991379,93096.0,93095.0,0.12355916]
[1732100640601,0.03982479,93096.0,93095.0,0.12355916]
[1732100641688,0.1,93099.0,93095.0,0.12355916]
[1732100641895,0.01991058,93098.0,93095.0,0.12355916]
[1732100642119,0.01991058,93097.0,93095.0,0.12355916]
[1732100642337,0.1,93099.0,93095.0,0.12355916]
[1732100643557,0.1,93099.0,93097.0,0.14426736]
[1732100644647,0.1,93099.0,93098.0,0.19223417]
[1732100645265,0.1,93099.0,93098.0,0.3184158]
[1732100645470,0.1,93099.0,93098.0,0.12510757]
[1732100645696,0.1,93099.0,93098.0,0.00354841]
[1732100645898,0.1,93099.0,93098.0,0.15590687]
[1732100647051,0.1,93099.0,93098.0,0.10590687]
[1732100647455,0.1,93099.0,93098.0,0.10790687]
[1732100647664,0.1,93099.0,93098.0,0.10590687]
[1732100648455,0.1,93099.0,93098.0,0.22946603]
[1732100648877,0.1,93099.0,93098.0,0.12355916]
[1732100649078,0.1,93099.0,93098.0,0.24711832]
[1732100649543,0.1,93099.0,93098.0,0.2873253]
[1732100650740,0.1,93099.0,93098.0,0.16376614]
[1732100651203,0.1017134,93099.0,93098.0,0.16376614]
[1732100652712,0.12166959,93099.0,93098.0,0.16376614]
[1732100653349,0.1017134,93099.0,93098.0,0.16376614]
[1732100653761,0.1017134,93099.0,93098.0,0.40420507]
[1732100653969,0.1017134,93099.0,93098.0,0.16376614]
[1732100654198,0.1017134,93099.0,93098.0,0.28839931]
[1732100654411,0.1017134,93099.0,93098.0,0.5176253]
[1732100655249,0.1017134,93099.0,93098.0,0.5196253]
[1732100656265,0.1017134,93099.0,93098.0,0.26376614]
[1732100656487,0.1017134,93099.0,93098.0,0.16376614]
[1732100656706,0.1017134,93099.0,93098.0,0.26376614]
[1732100657140,0.1017134,93099.0,93098.0,0.04020698]
[1732100657350,0.17016859,93099.0,93098.0,0.04020698]
[1732100657586,0.20209575,93099.0,93098.0,0.12355916]
[1732100658047,0.28249575,93099.0,93098.0,0.12355916]
[1732100658688,0.28249386,93099.0,93098.0,0.12355916]
[1732100660093,0.29249386,93099.0,93098.0,0.12355916]
[1732100660341,0.30249386,93099.0,93098.0,0.12355916]
[1732100661393,0.30249386,93099.0,93095.0,0.14425864]
[1732100661662,0.05188046,93098.0,93096.0,0.12355916]
[1732100662099,0.05188046,93098.0,93093.0,0.14425864]
[1732100662100,0.01,93095.0,93093.0,0.14425864]
[1732100662308,0.05188046,93094.0,93093.0,0.14425864]
[1732100663396,0.06188046,93094.0,93093.0,0.14425864]
[1732100664063,0.06188046,93094.0,93093.0,0.1443166]
[1732100664287,0.0591,93093.0,93090.0,0.14436362]
[1732100664485,0.13478046,93092.0,93090.0,0.14436362]
[1732100664726,0.13478046,93092.0,93089.0,0.14522032]
[1732100664727,0.05188046,93091.0,93089.0,0.14522032]
[1732100664976,0.14904156,93090.0,93089.0,0.14522032]
[1732100665211,0.16899558,93090.0,93089.0,0.0008567]
[1732100665424,0.1824034,93090.0,93089.0,0.0008567]
[1732100666784,0.2621034,93090.0,93089.0,0.0008567]
[1732100666998,0.2721034,93090.0,93089.0,0.0008567]
[1732100667209,0.3172034,93090.0,93089.0,0.0008567]
[1732100668772,0.3171722,93090.0,93089.0,0.0008567]
[1732100672299,2.81714115,93090.0,93089.0,0.0008567]
[1732100672502,2.84901851,93090.0,93089.0,0.0008567]
[1732100672729,2.82511232,93090.0,93089.0,0.0008567]
[1732100673489,2.94511232,93090.0,93089.0,0.0008567]
[1732100675173,2.82511232,93090.0,93089.0,0.0008567]
[1732100675389,2.79714115,93090.0,93089.0,0.0008567]
[1732100675607,2.80708853,93090.0,93089.0,0.0008567]
[1732100675810,2.68997341,93090.0,93089.0,0.0008567]
[1732100675960,2.80368131,93090.0,93089.0,0.0008567]
[1732100676365,2.67656619,93090.0,93089.0,0.0008567]
[1732100676573,2.63146619,93090.0,93089.0,0.0008567]
[1732100677572,2.55176619,93090.0,93089.0,0.0008567]
[1732100677777,2.51991007,93090.0,93089.0,0.0008567]
[1732100679587,2.51991789,93090.0,93089.0,0.0008567]
[1732100680469,2.5199193,93090.0,93089.0,0.0008567]
[1732100680738,2.76633442,93090.0,93089.0,0.0008567]
[1732100681402,2.80820715,93090.0,93089.0,0.0008567]
[1732100681854,2.82161451,93090.0,93089.0,0.0008567]
[1732100683527,2.82958094,93090.0,93089.0,0.0008567]
[1732100686234,2.82958229,93090.0,93089.0,0.0008567]
[1732100689280,2.79770956,93090.0,93089.0,0.0008567]
[1732100689514,2.81961838,93090.0,93089.0,0.0008567]
[1732100689784,2.82951576,93090.0,93089.0,0.0008567]
[1732100690003,2.82154798,93090.0,93089.0,0.0008567]
[1732100690226,2.82952149,93090.0,93089.0,0.0008567]
[1732100690502,2.82154705,93090.0,93089.0,0.0008567]
[1732100690710,2.8295223,93090.0,93089.0,0.0008567]
[1732100691205,2.82952234,93090.0,93089.0,0.0008567]
[1732100692816,2.82955297,93090.0,93089.0,0.0008567]
[1732100695799,2.82957321,93090.0,93089.0,0.0008567]
[1732100696314,2.7563125,93090.0,93089.0,0.0008567]
[1732100696538,2.82957945,93090.0,93089.0,0.0008567]
[1732100698861,2.81957945,93090.0,93089.0,0.0008567]
[1732100699090,2.57316433,93090.0,93089.0,0.0008567]
[1732100699321,2.56518303,93090.0,93089.0,0.0008567]
[1732100699543,2.55177583,93090.0,93089.0,0.0008567]
[1732100700744,2.51985063,93090.0,93089.0,0.0008567]
[1732100700971,2.51985398,93090.0,93089.0,0.0008567]
[1732100701650,2.51985398,93090.0,93089.0,0.19313356]
[1732100701904,2.49989738,93090.0,93089.0,0.19313356]
[1732100702123,2.51985162,93090.0,93089.0,0.19313356]
[1732100702349,2.51985162,93090.0,93089.0,0.0008567]
[1732100703226,2.51985162,93090.0,93089.0,0.24120277]
[1732100703715,2.51985162,93090.0,93089.0,0.28118274]
[1732100704163,2.51985162,93090.0,93089.0,0.04083667]
[1732100704414,2.51985162,93090.0,93089.0,0.28142333]
[1732100704861,2.51985162,93090.0,93089.0,0.28342333]
[1732100705314,2.51984424,93090.0,93089.0,0.04283667]
[1732100705813,2.49989738,93090.0,93089.0,0.04283667]
[1732100706252,2.49989738,93090.0,93089.0,0.16439583]
[1732100706923,2.49989738,93090.0,93089.0,0.72601952]
[1732100707396,2.49989738,93090.0,93089.0,0.83308675]
[1732100707600,2.49989738,93090.0,93089.0,0.62309906]
[1732100707863,2.49989738,93090.0,93089.0,0.62509906]
[1732100708079,2.49989738,93090.0,93089.0,1.05147793]
[1732100708286,2.49989738,93090.0,93089.0,0.62509906]
[1732100708519,2.49989738,93090.0,93089.0,1.04655176]
[1732100709448,2.49989738,93090.0,93089.0,0.64297741]
[1732100709666,2.49989738,93090.0,93089.0,0.64497741]
[1732100710339,2.49989738,93090.0,93089.0,0.62037011]
[1732100710775,2.49989738,93090.0,93089.0,0.64312241]
[1732100711656,2.49989738,93090.0,93089.0,0.66289889]
[1732100711898,2.4897161,93090.0,93089.0,0.66289889]
[1732100712541,2.4897161,93090.0,93089.0,0.62291892]
[1732100712542,2.46432852,93090.0,93089.0,0.62291892]
[1732100713478,2.23167258,93090.0,93089.0,0.54331892]
[1732100713694,2.00456457,93090.0,93089.0,0.54331892]
[1732100714828,1.98456224,93090.0,93089.0,0.54331892]
[1732100715085,1.98627564,93090.0,93089.0,0.54331892]
[1732100715319,1.98627564,93090.0,93089.0,0.50079014]
[1732100715604,1.98627564,93090.0,93089.0,0.47779014]
[1732100716277,1.98627564,93090.0,93089.0,0.76559527]
[1732100716497,1.98627564,93090.0,93089.0,0.47579014]
[1732100716726,1.98627564,93090.0,93089.0,0.47779014]
[1732100717179,1.98627564,93090.0,93089.0,0.46879014]
[1732100717408,1.98627564,93090.0,93089.0,0.50869375]
[1732100717632,1.98627564,93090.0,93089.0,0.73675912]
[1732100718313,1.98627564,93090.0,93089.0,0.73475912]
[1732100719009,1.98627564,93090.0,93089.0,0.73675912]
[1732100719255,1.90907559,93090.0,93089.0,0.49699375]
[1732100719742,1.80686801,93090.0,93089.0,0.51999375]
[1732100720430,1.80686801,93090.0,93089.0,0.53624499]
[1732100720647,1.80686801,93090.0,93089.0,0.56096482]
[1732100720902,1.80686801,93090.0,93089.0,0.51999375]
[1732100722255,1.80686801,93090.0,93089.0,0.73668169]
[1732100722478,1.80686801,93090.0,93089.0,0.49699375]
[1732100723430,1.80686801,93090.0,93089.0,0.24987543]
[1732100723656,1.80686801,93090.0,93089.0,0.27143459]
[1732100723881,1.88196801,93090.0,93089.0,0.27143459]
[1732100724354,1.88196801,93090.0,93089.0,0.16431947]
[1732100724818,1.88196801,93090.0,93089.0,0.0008567]
[1732100725055,1.90184891,93090.0,93089.0,0.0008567]
[1732100728207,1.90184891,93090.0,93089.0,0.20904597]
[1732100728208,1.82674891,93090.0,93089.0,0.20904597]
[1732100728426,1.80686801,93090.0,93089.0,0.20997182]
[1732100730011,1.80686801,93090.0,93089.0,0.20797182]
[1732100730454,1.80686801,93090.0,93089.0,0.0008567]
[1732100731119,1.93886801,93090.0,93089.0,0.0008567]
[1732100732954,1.99066144,93090.0,93089.0,0.0008567]
[1732100733192,1.97074089,93090.0,93089.0,0.0008567]
[1732100733861,1.83874089,93090.0,93089.0,0.0008567]
[1732100734082,1.87062307,93090.0,93089.0,0.0008567]
[1732100734302,1.89054943,93090.0,93089.0,0.35183489]
[1732100734533,1.89054943,93090.0,93089.0,0.35192241]
[1732100734765,1.89054943,93090.0,93089.0,0.20997182]
[1732100734981,1.85866725,93090.0,93089.0,0.20997182]
[1732100735194,1.85866725,93090.0,93089.0,0.44987223]
[1732100735463,1.85866725,93090.0,93089.0,0.20797182]
[1732100735674,1.85866725,93090.0,93089.0,0.20997182]
[1732100735913,1.85866725,93090.0,93089.0,0.33153098]
[1732100736142,1.85866725,93090.0,93089.0,0.20997182]
[1732100737733,1.85866725,93090.0,93089.0,0.49793323]
[1732100737949,1.85866725,93090.0,93089.0,0.20997182]
[1732100738658,1.85866725,93090.0,93089.0,0.35653098]
[1732100739295,1.85866725,93090.0,93089.0,0.7816137]
[1732100739739,1.85866725,93090.0,93089.0,0.78176526]
[1732100739959,1.85866725,93090.0,93089.0,0.7817687]
[1732100740173,1.85866725,93090.0,93089.0,0.35653098]
[1732100741092,1.85866725,93090.0,93089.0,0.33353098]
[1732100741961,1.85866725,93090.0,93089.0,0.74517775]
[1732100743020,1.85866725,93090.0,93089.0,0.45709014]
[1732100744789,1.85866725,93090.0,93089.0,0.45509014]
[1732100745012,1.85866725,93090.0,93089.0,0.45709014]
[1732100745243,1.85866725,93090.0,93089.0,0.33353098]
[1732100745475,1.85866725,93090.0,93089.0,0.45709014]
[1732100745712,1.85866725,93090.0,93089.0,0.45509014]
[1732100745913,1.85866725,93090.0,93089.0,0.45709014]
[1732100746131,1.85866725,93090.0,93089.0,0.33353098]
[1732100746584,1.80686801,93090.0,93089.0,0.33353098]
[1732100746805,1.80686801,93090.0,93089.0,0.33153098]
[1732100747239,1.80686801,93090.0,93089.0,0.33353098]
[1732100748366,1.80686801,93090.0,93089.0,0.33153098]
[1732100748605,1.80686801,93090.0,93089.0,0.33353098]
[1732100749092,1.80686801,93090.0,93089.0,0.12641586]
[1732100749784,1.80686801,93090.0,93089.0,0.41484082]
[1732100749961,1.80686801,93090.0,93089.0,0.41284082]
[1732100750212,1.80686801,93090.0,93089.0,0.51284082]
[1732100750431,1.80686801,93090.0,93089.0,0.62195594]
[1732100750652,1.80686801,93090.0,93089.0,0.33353098]
[1732100751102,1.80686801,93090.0,93089.0,0.62197812]
[1732100751318,1.80686801,93090.0,93089.0,0.33353098]
[1732100751829,1.82680331,93090.0,93089.0,0.62201029]
[1732100752045,1.80686801,93090.0,93089.0,0.62201029]
[1732100752518,1.80686801,93090.0,93089.0,0.33353098]
[1732100754441,1.80060511,93090.0,93089.0,0.33153098]
[1732100754655,1.8205498,93090.0,93089.0,0.33353098]
[1732100754859,1.80060511,93090.0,93089.0,0.45709014]
[1732100755999,1.80060511,93090.0,93089.0,0.33353098]
[1732100757571,1.80060511,93090.0,93089.0,0.33353098]
[1732100757783,1.80060511,93090.0,93089.0,0.33153098]
[1732100757989,1.80060511,93090.0,93089.0,0.33353098]
[1732100758419,1.80060511,93090.0,93089.0,0.33153098]
[1732100758647,1.79880511,93090.0,93089.0,0.33353098]
[1732100758871,1.81876623,93090.0,93089.0,0.33353098]
[1732100759107,1.79880511,93090.0,93089.0,0.62200921]
[1732100759313,1.79880511,93090.0,93089.0,0.62202412]
[1732100759538,1.79880511,93090.0,93089.0,0.33353098]
[1732100759749,1.81876663,93090.0,93089.0,0.62203714]
[1732100760369,1.81876663,93090.0,93089.0,0.33353098]
[1732100760619,1.79880511,93090.0,93089.0,0.33353098]
[1732100761070,1.79880511,93090.0,93089.0,0.20997182]
[1732100761336,1.79880511,93090.0,93089.0,0.33353098]
[1732100761754,1.81876753,93090.0,93089.0,0.33353098]
[1732100761980,1.79880511,93090.0,93089.0,0.33353098]
[1732100762189,1.79880511,93090.0,93089.0,0.33153098]
[1732100762886,1.79880511,93090.0,93089.0,0.33353098]
[1732100763762,1.81877006,93090.0,93089.0,0.33153098]
[1732100763976,1.79880511,93090.0,93089.0,0.33153098]
[1732100764186,1.81877055,93090.0,93089.0,0.33153098]
[1732100764405,1.8187701,93090.0,93089.0,0.33353098]
[1732100764627,1.79880511,93090.0,93089.0,0.33353098]
[1732100764877,1.81877087,93090.0,93089.0,0.33353098]
[1732100765383,1.81877087,93090.0,93089.0,0.20997182]
[1732100765596,1.81877087,93090.0,93089.0,0.33353098]
[1732100765815,1.79880511,93090.0,93089.0,0.33353098]
[1732100766952,1.79880511,93090.0,93089.0,0.33153098]
[1732100767173,1.79880511,93090.0,93089.0,0.33353098]
[1732100768525,1.79857653,93090.0,93089.0,0.33353098]
[1732100770506,1.81856394,93090.0,93089.0,0.33353098]
[1732100771004,1.89636329,93090.0,93089.0,0.22441586]
[1732100771217,1.89636329,93090.0,93089.0,0.0008567]
[1732100771218,1.94526329,93090.0,93089.0,0.0008567]
[1732100771444,1.97723943,93090.0,93089.0,0.0008567]
[1732100772356,1.97723943,93090.0,93089.0,0.12441586]
[1732100772840,1.94526329,93090.0,93089.0,0.52040969]
[1732100773037,1.94526329,93090.0,93089.0,0.23067428]
[1732100774259,1.94525927,93090.0,93089.0,0.23067428]
[1732100774702,1.92527653,93090.0,93089.0,0.23067428]
[1732100774896,1.94525927,93090.0,93089.0,0.23067428]
[1732100777378,1.94525927,93090.0,93089.0,0.12355916]
[1732100777853,1.94526214,93090.0,93089.0,0.12355916]
[1732100778082,1.94526214,93090.0,93089.0,0.12441486]
[1732100778528,1.94526214,93090.0,93065.0,0.42656487]
[1732100778742,1.92527653,93090.0,93089.0,0.12355916]
[1732100778953,0.0822,93089.0,93071.0,0.0004]
[1732100779164,0.06978642,93088.0,93083.0,0.12355916]
[1732100779395,0.14998642,93087.0,93083.0,0.12355916]
[1732100779581,0.10018642,93086.0,93083.0,0.12355916]
[1732100779825,0.06978642,93085.0,93083.0,0.12355916]
[1732100780055,0.10018642,93084.0,93083.0,0.12355916]